Cogmind - Beta 11 X7 @@@ ROGUE MODE // 2021.10.21 @ 22:01:40 Player: IceBox Result: Self-destructed Performance ------------- Evolutions (1) 500 Regions Visited (3) 600 Robots Destroyed (52) 260 Value Destroyed (1191) 1191 Prototype IDs (7) 140 Alien Tech Used (0) 0 Bonus (0) 0 TOTAL SCORE: 2691 Bonus ------- None Cogmind --------- Core Integrity 331/400 Matter 290/300 Energy 265/265 System Corruption 5% Temperature Cool (0) Movement Treading (160) Location -9/Materials Parts ------- > --- POWER (1) -------- Improved Ion Engine > --- PROPULSION (3) --- Light Treads Light Treads Light Treads > --- UTILITY (3) ------ Cooling System Large Storage Unit Reactive Plating > --- WEAPON (2) ------- Improved Medium Laser Improved Medium Laser > --- INVENTORY (15) --- Ion Engine Improved Ion Engine Improved Ion Engine Light Treads Light Treads Improved Sensor Array Reactive Plating Reactive Plating Hacking Suite Heavy Assault Rifle Heavy Assault Rifle Flak Cannon Flak Cannon Flak Cannon Grenade Launcher Peak State ------------ > --- POWER ------------ Improved Ion Engine > --- PROPULSION ------- Light Treads Light Treads Light Treads > --- UTILITY ---------- Cooling System Large Storage Unit Reactive Plating > --- WEAPON ----------- Improved Medium Laser Improved Medium Laser > --- INVENTORY -------- Ion Engine Improved Ion Engine Light Treads Light Treads Improved Sensor Array Reactive Plating Reactive Plating Hacking Suite Heavy Assault Rifle Heavy Assault Rifle Flak Cannon Flak Cannon Flak Cannon Grenade Launcher Mining Laser [Rating: 20] Favorites ----------- Power Ion Engine Engine Ion Engine Propulsion Light Treads Treads Light Treads Leg Aluminum Leg Wheel Wheel Utility Large Storage Unit Device Cooling System Storage Large Storage Unit Processor Signal Interpreter Protection Reactive Plating Weapon Improved Medium Laser Energy Gun Improved Medium Laser Ballistic Gun Heavy Assault Rifle Ballistic Cannon Flak Cannon Launcher Grenade Launcher Special Weapon Mining Laser Impact Weapon Mace Build | -11 -10 -10 -9 ------- Run | Scr Mat Min Mat Slots Evolved 2 | . . . 2 Power . | . . . . Propulsion 1 | . . . 1 Utility 1 | . . . 1 Weapon . | . . . . Parts Attached 51 | 2 14 7 28 Power 5 | . 1 1 3 Engine 5 | . 1 1 3 Core . | . . . . Reactor . | . . . . Propulsion 10 | 2 1 2 5 Treads 8 | 1 1 2 4 Leg . | . . . . Wheel 2 | 1 . . 1 Hover . | . . . . Flight . | . . . . Utility 13 | . 3 1 9 Device 5 | . . . 5 Storage 4 | . 2 . 2 Processor 1 | . 1 . . Hackware . | . . . . Protection 3 | . . 1 2 Artifact . | . . . . Weapon 23 | . 9 3 11 Energy Gun 7 | . 1 . 6 Energy Cannon . | . . . . Ballistic Gun 8 | . 5 2 1 Ballistic Cannon 2 | . . . 2 Launcher 2 | . 1 . 1 Special Weapon 1 | . . . 1 Impact Weapon 3 | . 2 1 . Slashing Weapon . | . . . . Piercing Weapon . | . . . . Special Melee Weapon . | . . . . Unidentified Prototypes 1 | . . . 1 Parts Lost 5 | . 1 3 1 Power 1 | . 1 . . Propulsion 3 | . . 2 1 Utility . | . . . . Weapon 1 | . . 1 . Highest Loss Streak 2 | . 1 2 1 Average Slot Usage (%) 98 | . 96 98 99 Engine 12 | . 13 14 11 Treads 25 | . 25 26 24 Wheel 5 | . 2 . 8 Device 4 | . . . 8 Storage 12 | . 14 14 11 Processor 4 | . 10 8 . Protection 7 | . . 5 13 Energy Gun 15 | . 18 . 17 Ballistic Gun 7 | . 8 27 2 Naked Turns . | . . . . Heaviest Build 61 | 12 29 34 61 Greatest Support 60 | 20 40 40 60 Greatest Overweight (x) 4 | . . 1 4 Average Overweight (x) 1 | . . . 3 Largest Inventory Capacity 20 | 8 15 15 20 Average Capacity 14 | 8 12 15 15 Most Carried 16 | 6 15 15 16 Average Carried 13 | 6 12 14 14 Final Capacity 15 | 8 15 15 15 Final Carried 15 | 6 15 15 15 Class Distribution -------------------- 100% | Mutant Dominant Class ---------------- Mutant | -10/Materials Mutant | -10/Mines Mutant | -9/Materials Resources | -11 -10 -10 -9 ----------- Run | Scr Mat Min Mat Matter Collected 1078 | 220 90 304 464 Remotely . | . . . . Salvage Created 1798 | . 565 360 873 Parts 128 | . 31 23 74 Haulers Intercepted 2 | . 1 . 1 Recyclers Shooed 1 | . . 1 . Parts Field Recycled . | . . . . Retrieved Matter . | . . . . Parts Self-Destructed . | . . . . Prevented . | . . . . Kills | -11 -10 -10 -9 ------- Run | Scr Mat Min Mat Combat Hostiles Destroyed 41 | . 9 11 21 Guns 32 | . 6 11 15 Cannons 3 | . . . 3 AOE 5 | . 3 . 2 Classes Destroyed 9 | . 7 1 1 Builder 1 | . 1 . . Hauler 2 | . 1 . 1 Recycler 5 | . 2 1 2 Operator 1 | . 1 . . Watcher 4 | . 1 . 3 Swarmer 17 | . 3 3 11 Grunt 17 | . 6 6 5 Sentry 5 | . . . 5 Assembled 2 | . . 2 . Best Kill Streak 7 | . 4 3 7 Combat Bots Only 6 | . 3 3 6 Max Kills in Single Turn 2 | . 2 1 2 Gunslinging . | . . . . Exploded 2 | . 2 . 2 Melee . | . . . . Uniques/NPCs Destroyed . | . . . . Combat | -11 -10 -10 -9 -------- Run | Scr Mat Min Mat Damage Taken 1292 | . 347 440 505 Core 181 | . 35 77 69 Absorbed by Shields . | . . . . Core Remaining (%) 77 | 100 . 55 . Volleys Fired 127 | . 32 27 68 Largest 2 | . 2 2 2 Hottest 112 | . 80 46 112 Shots Fired 231 | . 58 53 120 Gun 211 | . 54 53 104 Cannon 8 | . . . 8 Launcher 5 | . 4 . 1 Special 7 | . . . 7 Kinetic 97 | . . 53 44 Thermal 75 | . . . 75 Explosive 5 | . 4 . 1 Electromagnetic 54 | . 54 . . Robot Hit Streak 12 | . 5 9 12 Robot Miss Streak 10 | . 3 2 10 Penetration Max . | . . . . Secondary Targets 4 | . . 2 2 Max Gunslinging Chain 1 | . . 1 1 Shots Hit Robots 149 | . 36 38 75 Core Hits 81 | . 22 20 39 Critical Kills . | . . . . Critical Parts Destroyed . | . . . . Critical Strikes 2 | . 1 . 1 Burn 1 | . . . 1 Corrupt 1 | . 1 . . Melee Attacks 6 | . 3 3 . Impact 6 | . 3 3 . Slashing . | . . . . Piercing . | . . . . Sneak Attacks . | . . . . Combat Hostiles . | . . . . Follow-up Attacks . | . . . . Damage Inflicted 2654 | . 825 554 1275 Guns 2160 | . 510 554 1096 Cannons 83 | . . . 83 Explosions 411 | . 315 . 96 Melee . | . . . . Ramming . | . . . . Kinetic 978 | . . 554 424 Thermal 910 | . 155 . 755 Explosive 256 | . 160 . 96 Electromagnetic 510 | . 510 . . Impact . | . . . . Slashing . | . . . . Piercing . | . . . . Highest Corruption 5 | . . . 5 Average Corruption 4 | . . . 4 Corruption Purged . | . . . . Effects 21 | . . . 21 Message Errors 5 | . . . 5 Matter Fused 5 | . . . 5 Heat Flow Errors 3 | . . . 3 Energy Discharges 4 | . . . 4 Data Loss (minor) 2 | . . . 2 Data Loss (major) 1 | . . . 1 Weapon Failures 1 | . . . 1 Overload Shots . | . . . . Overflow Damage 23 | . 23 . . Projectiles . | . . . . Explosions 23 | . 23 . . Melee . | . . . . Knockbacks 7 | . . . 7 Impact . | . . . . Kinetic 7 | . . . 7 Secondary . | . . . . Self-Inflicted Damage 111 | . 111 . . Shots 4 | . 4 . . Rammed . | . . . . Targets Rammed . | . . . . Kicked . | . . . . Crushed . | . . . . Highest Temperature 222 | . 156 34 222 Average Temperature 42 | . 56 11 42 Received Heat Transfer 519 | . 108 243 168 Siege Activations . | . . . . Robots Corrupted . | . . . . Combat Hostiles . | . . . . Parts Fried 2 | . 2 . . Impact Corruptions . | . . . . Robots Melted 1 | . . . 1 Combat Hostiles 1 | . . . 1 Parts Melted 3 | . . . 3 Heat Transferred 1852 | . 150 . 1702 Parts Sabotaged . | . . . . Parts Stolen . | . . . . Parts Stripped . | . . . . Power Chain Reactions 3 | . 3 . . Missiles Intercepted . | . . . . Alert | -11 -10 -10 -9 ------- Run | Scr Mat Min Mat Peak Influence 371 | . 194 237 371 Initial 92 | . . 25 92 Average 167 | . 69 162 232 Maximum Alert Level 1 | . . 1 1 Low Security (%) 62 | 100 100 69 36 Level 1 37 | . . 30 63 Level 2 . | . . . . Level 3 . | . . . . Level 4 . | . . . . Level 5 . | . . . . High Security . | . . . . Max Security . | . . . . Squads Dispatched 1 | . 1 . . Investigation . | . . . . Extermination . | . . . . Reinforcement 1 | . 1 . . Assault . | . . . . Garrison . | . . . . Intercept . | . . . . Construction Impeded . | . . . . Haulers Reinforced . | . . . . Active Scanning Responses . | . . . . Cargo Convoy Interrupts . | . . . . Stealth | -11 -10 -10 -9 --------- Run | Scr Mat Min Mat Distress Signals 2 | . 1 . 1 Communications Jammed . | . . . . Distress Signals . | . . . . Times Spotted 58 | . 17 13 28 Peak Tracking Total 8 | . 4 3 8 Tactical Retreats 4 | . . 2 2 Traps | -11 -10 -10 -9 ------- Run | Scr Mat Min Mat Traps Triggered 4 | . 1 . 3 Indirectly . | . . . . Trap Hack Attempts . | . . . . Triggered . | . . . . Disarmed . | . . . . Reprogrammed . | . . . . Reused . | . . . . Traps Extracted . | . . . . Installed . | . . . . Triggered . | . . . . Machines | -11 -10 -10 -9 ---------- Run | Scr Mat Min Mat Machines Disabled 6 | . 4 1 1 Max in Single Turn 2 | . 2 1 1 Machines Sabotaged . | . . . . Garrisons Compromised . | . . . . Overloaded Fab Kills . | . . . . Fab Network Shutdowns . | . . . . Hacking | -11 -10 -10 -9 --------- Run | Scr Mat Min Mat Machines Accessed 15 | . 5 1 9 Terminals 14 | . 5 1 8 Fabricators . | . . . . Repair Stations . | . . . . Recycling Units 1 | . . . 1 Scanalyzers . | . . . . Garrison Access . | . . . . Total Hacks 54 | . 12 4 38 Successful 27 | . 4 1 22 Failed 27 | . 8 3 16 Catastrophic 2 | . 1 1 . Database Lockouts . | . . . . Manual 43 | . 8 5 30 Terminals 50 | . 12 4 34 Fabricators . | . . . . Repair Stations . | . . . . Recycling Units 4 | . . . 4 Scanalyzers . | . . . . Garrison Access . | . . . . Terminal Hacks 13 | . 3 1 9 Part Schematic 1 | . . 1 . Robot Analysis 3 | . . . 3 Prototype ID Bank 4 | . 2 . 2 Locate Traps 1 | . . . 1 Transport Status 1 | . . . 1 Hauler Manifests 2 | . 1 . 1 Registered Components 1 | . . . 1 Fabricator Hacks . | . . . . Repair Station Hacks . | . . . . Recycling Unit Hacks 1 | . . . 1 Report Inventory 1 | . . . 1 Scanalyzer . | . . . . Garrison Access Hacks . | . . . . Unauthorized Hacks 13 | . 1 . 12 Terminals 11 | . 1 . 10 Track 3 | . . . 3 Assimilate 1 | . . . 1 Botnet 4 | . . . 4 Disrupt 1 | . . . 1 Operators 2 | . 1 . 1 Fabricators . | . . . . Repair Stations . | . . . . Recycling Units 2 | . . . 2 Monitor 1 | . . . 1 Recyclers 1 | . . . 1 Scanalyzers . | . . . . Garrison Access . | . . . . Data Cores Recovered . | . . . . Used . | . . . . Hacking Detections 14 | . 5 1 8 Full Trace Events 1 | . . 1 . Feedback Events . | . . . . Feedback Blocked . | . . . . Robot Schematics Acquired . | . . . . Robots Built . | . . . . Matter . | . . . . Time . | . . . . Total Robot Build Rating . | . . . . Part Schematics Acquired 1 | . . 1 . Parts Built . | . . . . Matter . | . . . . Time . | . . . . Total Part Build Rating . | . . . . Parts Repaired . | . . . . Time . | . . . . Parts Recycled . | . . . . Recycled Matter . | . . . . Retrieved Matter . | . . . . Retrieved Components . | . . . . Parts Scanalyzed . | . . . . Part Schematics Acquired . | . . . . Parts Damaged . | . . . . Bothacking | -11 -10 -10 -9 ------------ Run | Scr Mat Min Mat Used RIF Installer . | . . . . Robots Hacked . | . . . . Non-combat . | . . . . Combat . | . . . . Robot Hacks Applied . | . . . . Relay Couplers Released . | . . . . Robots Rewired . | . . . . Allies Hacked . | . . . . Hacks Repelled . | . . . . Allies | -11 -10 -10 -9 -------- Run | Scr Mat Min Mat Total Allies 1 | . . . 1 Largest Group 1 | . . . 1 Highest-Rated Group 10 | . . . 10 Highest-Rated Ally 10 | . . . 10 Total Orders . | . . . . Ally Attacks . | . . . . Total Damage . | . . . . Kills . | . . . . Allies Corrupted . | . . . . Allies Melted . | . . . . Intel | -11 -10 -10 -9 ------- Run | Scr Mat Min Mat Robot Analysis Total 3 | . . . 3 Derelict Logs Recovered . | . . . . Drone Launches . | . . . . Drone Recoveries . | . . . . Exploration | -11 -10 -10 -9 ------------- Run | Scr Mat Min Mat Turns Passed 2792 | 18 941 338 1495 Spaces Moved 1379 | 12 441 132 794 Core . | . . . . Treads 762 | 4 441 132 185 Legs 8 | 8 . . . Wheels 609 | . . . 609 Hover . | . . . . Flight . | . . . . Fastest Speed 120 | 120 160 160 125 Average Speed 151 | 133 160 163 144 Slowest Speed 260 | 160 160 260 260 Overloaded Moves . | . . . . Propulsion Burnouts . | . . . . Robots Hopped . | . . . . Cave-ins Triggered . | . . . . Exploration Rate (%) 41 | 2 67 19 76 Regions Visited 3 Branch Regions 1 Pre-discovered Areas . | . . . . Known Exits Taken 2 | . 1 1 . Unknown Exits Taken 1 | 1 . . . Scrap Searched . | . . . . Spaces Dug 9 | . 2 . 7 Terrain Destroyed 22 | . 11 . 11 Melee 2 | . 2 . . Projectile 7 | . . . 7 AOE 13 | . 9 . 4 Terrain Rammed . | . . . . Walls Destroyed . | . . . . Machines Disabled . | . . . . Actions | -11 -10 -10 -9 --------- Run | Scr Mat Min Mat Total 1831 | 13 614 196 1008 Wait 183 | . 91 23 69 Move 1376 | 11 440 131 794 Hop . | . . . . Pick Up 44 | . 21 3 20 Fast Attach 16 | . 4 1 11 Attach 8 | . 1 4 3 Detach 3 | . . 2 1 Swap 27 | 2 9 2 14 Drop 41 | . 13 . 28 Fire 127 | . 32 27 68 Melee 6 | . 3 3 . Ram . | . . . . Kick . | . . . . Crush . | . . . . Escape Stasis . | . . . . Rewire . | . . . . Trap . | . . . . Miscellaneous . | . . . . Route ------- -11/Scrapyard -10/Materials (discovered 3 exits: *Mat x2 / *Min) -10/Mines -9/Materials (discovered 4 exits: [*Mat x2] / [*Min x2]) History --------- Turn | Location | Event 1 | -11/Scrapyard | Discovered new exit (range 3) 19 | -11/Scrapyard | Entered Materials 219 | -10/Materials | Discovered new exit (range 7) 248 | -10/Materials | Identified exit to Mines 320 | -10/Materials | Build established: Mutant 624 | -10/Materials | Discovered new exit (range 4) 629 | -10/Materials | Identified exit to Materials 861 | -10/Materials | Discovered exit to Materials (range 5) 960 | -10/Materials | Entered Mines 1129 | -10/Mines | Excavation squad dispatched 1129 | -10/Mines | A large section of the Mines collapsed 1264 | -10/Mines | Discovered exit to Materials (range 10) 1298 | -10/Mines | Entered Materials 1298 | -9/Materials | Evolved 2 slots: Propulsion x1, Utility x1 1347 | -9/Materials | Discovered new exit (range 11) 1694 | -9/Materials | Discovered new exit (range 15) 2034 | -9/Materials | Discovered new exit (range 16) 2451 | -9/Materials | Discovered new exit (range 11) 2793 | -9/Materials | Self-destructed Last Messages --------------- Y-series armored sentries are equipped with a mix of thermal and kinetic weaponry. The Y-45 guards important locations and vital machinery, and remains at its station unless they identify a hostile robot or are alerted to the presence of one nearby. 02761_ Y-45 Defender destroyed. 02762_ K-01 Serf collects debris. 02764_ Acquired 27 matter. 02765_ K-01 Serf collects debris. 02767_ Dropped Lgt. Treads. 02768_ Acquired Lgt. Treads. 02768_ K-01 Serf collects debris. 02769_ Acquired 10 matter. 02772_ K-01 Serf collects debris. 02772_ Dropped Lgt. Treads. 02773_ Acquired Lgt. Treads. 02776_ K-01 Serf collects debris. 02776_ Dropped Mining Laser. 02777_ Acquired Imp. Ion Engine. 02779_ K-01 Serf collects debris. 02783_ R-06 Scavenger collects Mining Laser. Map ----- +----------------------------------------------------+ | ####+#+## ##""" #u # " "!" #???? ??????? | | ???# ## % # # ] # ???? | | ???# ## % ""# ???? | | ???# ## T"# < ??? | | ???## ## ""# ???? | | ????# " ## # ## ##### ???? | | ????# "" ## ##+##### ##########???????????? | | ????# "" #### ! + + %/#???????????? | | ????# """ #??# # # //#???????????? | | ????# "" #??# """" # # #???????????? | | ????# """ #??# """" # # #???????????? | | ##### """ #??# """" # ###+######???????????? | | """ #??# # #?# #????########????? | | " #######+### ### #??? !#????? | | * # ## #T# #??? ?????? | | ##### #""" # ### ??????? | | #?# " #""" ] # k # """ ? ???? | | #?# "" #""" + k + """ ? ???? | | #?# "" # # =# """ " "?? ???? | | #?# """ #""" * # %## "Y??? ""?? | | #?# "" #""" ### r [##? ""??? ""?? | | " #?# """ #""" * "## T#?## ###??? ?? | | "???# """ # ### ##???##????? ?? | | ????# """ ############ #??????????? ?? | | ????# " #??# = # #??????????? ?? | | ????# #??# @ #??????????? ?? | | ????# #??# # ## #############+#?? | | ????# #??#####+### ## #? | | ????# * #??????# ### ## # | | ????# ######## ## # | | ????# #### ############+### + | | ????# #??# #???# ## # | | ????# #??# #???# ## #?? | | ????# #??# #???# ## ##? | | ????#+#### #???# # #? | | ????# # ##### # #? | | ????# # + # < #? | | ????#[[!=# ######## #### # #? | | ????#[! [#*[ # ! # #??# # #? | | ????#[!% +== + # #??############ ##? | | ????# =####### # # #???# ####### #?? | | ????# [# # # # #???# # #?? | | ????# # + + ! # #???# #?? | | ????# ! # """ # # # #???# # #?? | | ????###### """ # #####+## #???# ##### #?? | | ?????????# """ # #???# #???# ???????# [### | | ?????????# # #???# #?????????????# !*[!] | | ?????????# # #???# #?????????????#* =! ! | | ?????????####### ?? #?????????????# [ =/ | | ???????????????###############?????????????####### | +----------------------------------------------------+ Best States ------------- Heat Dissipation 50 Energy Generation 12 Energy Capacity 265 Matter Stores 300 Matter Capacity 300 Sight Range 16 Terrain Scan Density 10 Armor Coverage 300 Resistance: KI 20 Evasion (%) 45 Recoil Reduction 3 Item Schematics ----------------- Med. Storage Unit | -10/Mines | Hacked Robot Schematics ------------------ None Fabricated ------------ Nothing Alien Tech Used ----------------- None Achievements -------------- None Challenges ------------ None Game ------ Seed KineticBombardmentThrusters Manual? 0 Play Time 00:40:37 Cumulative 81.7 hours Start 2021.10.16 @ 15:48:05 End 2021.10.21 @ 22:01:40 Sessions 4 Manual Loads 0 Difficulty Rogue Special Mode None Game No. 56 Rogue 55 Adventurer 1 Explorer 0 Win Type - Total 2 Types 2/0/0/0/0/0/0/0/0 Lore% 39 Gallery% 47 Achievement% 41 Wizard Run 0 Options --------- ASCII 0 Keyboard 1 Movement Vi Keybinds 0 Fullscreen 2 Font 18/TerminusBold Map View 76x50 Tactical HUD 1 Map Filters NONE Filters NONE Steam 1 RUN: 1b807d0e-fc42-482d-b548-1429f63be476